[Event "Silves Open 2025"]
[Site "Fissul"]
[Date "2025.03.05"]
[Round "7.18"]
[White "De Kruif, Kees"]
[Black "Sousa, Carlos Fantasia"]
[Result "0-1"]
[Annotator "NA RC"]
[ECO "A00"]
[WhiteElo "1857"]
[BlackElo "1752"]
[PlyCount "98"]
[EventDate "2025.03.03"]
[EventType "swiss"]
[EventCountry "POR"]
[SourceTitle "playchess.com"]
[Source "ChessBase"]
[SourceQuality "1"]
[TimeControl "5400+30"]

1. b4 {[%emt 0:00:12]} Nf6 {[%emt 0:04:38]} 2. Bb2 {[%emt 0:00:18]} d6 {[%emt 0:00:08]} 3. e3 {[%emt 0:00:27]} c6 {[%emt 0:00:15]} 4. c4 {[%emt 0:01:31]} a5 {[%emt 0:00:15]} 5. b5 {[%emt 0:00:15]} c5 {[%emt 0:00:19]} 6. Qc2 {[%emt 0:05:28]} b6 {[%emt 0:00:11]} 7. d4 {[%emt 0:07:15]} Nbd7 {[%emt 0:00:16]} 8. Nf3 {[%emt 0:03:24]} g6 {[%emt 0:00:10]} 9. d5 {[%emt 0:04:42]} Bg7 {[%emt 0:00:09]} 10. Bd3 {[%emt 0:01:06]} O-O {[%emt 0:00:22]} 11. Nc3 {[%emt 0:02:19]} Ng4 {[%emt 0:00:21]} 12. h3 {[%emt 0:01:34]} Nge5 {[%emt 0:00:08]} 13. Be2 {[%emt 0:00:34]} Qc7 {[%emt 0:03:54]} 14. O-O-O {[%emt 0:02:11]} Bb7 {[%emt 0:01:23]} 15. Nxe5 {[%emt 0:01:17]} Nxe5 {[%emt 0:00:46]} 16. f4 {[%emt 0:00:12]} Nd7 {[%emt 0:00:21]} 17. h4 {[%emt 0:01:14]} Nf6 {[%emt 0:01:18]} 18. h5 {[%emt 0:03:30]} Bc8 {[%emt 0:00:33]} 19. Rh4 {[%emt 0:06:06]} e5 {[%emt 0:09:38]} 20. g4 {[%emt 0:05:42]} exf4 {[%emt 0:00:41]} 21. exf4 {[%emt 0:00:59]} Qe7 {[%emt 0:00:49]} 22. Rdh1 {[%emt 0:03:43]} Qe3+ {[%emt 0:00:29]} 23. Qd2 {[%emt 0:00:11]} Re8 {[%emt 0:01:17]} 24. Qxe3 {[%emt 0:04:23]} Rxe3 {[%emt 0:00:09]} 25. Kd2 {[%emt 0:00:06]} Rg3 {[%emt 0:01:27]} 26. hxg6 {[%emt 0:02:36]} fxg6 {[%emt 0:01:45]} 27. g5 {[%emt 0:02:29]} Nh5 {[%emt 0:03:35]} 28. Ne4 {[%emt 0:00:17]} Bxb2 {[%emt 0:00:26]} 29. Nxg3 {[%emt 0:00:17]} Nxg3 {[%emt 0:00:10]} 30. R1h2 {[%emt 0:00:36]} Bf5 {[%emt 0:01:36]} 31. Rxh7 {[%emt 0:03:13]} Bg7 {[%emt 0:00:32]} 32. R7h4 {[%emt 0:01:35]} Re8 {[%emt 0:00:22]} 33. Bd3 {[%emt 0:02:10]} Ne4+ {[%emt 0:07:15]} 34. Kc2 {[%emt 0:01:24]} Ng3 {[%emt 0:02:25]} 35. Bxf5 {[%emt 0:01:31]} Nxf5 {[%emt 0:00:09]} 36. R4h3 {[%emt 0:00:51]} Re1 {[%emt 0:00:34]} 37. Kd3 {[%emt 0:00:59]} Rd1+ {[%emt 0:01:58]} 38. Kc2 {[%emt 0:02:18]} Rd4 {[%emt 0:00:48]} 39. Re2 {[%emt 0:04:41]} Rxc4+ {[%emt 0:00:21]} 40. Kd1 {[%emt 0:00:13]} Kf7 {[%emt 0:02:00]} 41. Rd3 {[%emt 0:05:22]} Rxf4 {[%emt 0:00:14]} 42. a3 {[%emt 0:00:18]} c4 {[%emt 0:01:55]} 43. Rdd2 {[%emt 0:00:24]} Bc3 {[%emt 0:01:14]} 44. Ra2 {[%emt 0:01:01]} Nd4 {[%emt 0:01:00]} 45. Rf2 {[%emt 0:00:15]} Rxf2 {[%emt 0:03:19]} 46. Rxf2+ {[%emt 0:00:06]} Nf5 {[%emt 0:00:06]} 47. Kc2 {[%emt 0:01:55]} Be5 {[%emt 0:00:20]} 48. a4 {[%emt 0:01:13]} Ke7 {[%emt 0:00:16]} 49. Rf1 {[%emt 0:00:44]} Ne3+ {[%emt 0:00:10]} 0-1

[Event "Silves Open 2025"]
[Site "Fissul"]
[Date "2025.03.05"]
[Round "7.20"]
[White "Sanchez Guirado, Francisco"]
[Black "Ryabukhina, Veronika"]
[Result "0-1"]
[Annotator "TA"]
[ECO "A30"]
[WhiteElo "2286"]
[BlackElo "1880"]
[PlyCount "112"]
[EventDate "2025.03.03"]
[EventType "swiss"]
[EventCountry "POR"]
[SourceTitle "playchess.com"]
[Source "ChessBase"]
[SourceQuality "1"]
[TimeControl "5400+30"]

{[%evp 15,112,0,0,7,0,0,12,0,17,12,20,0,0,-16,13,15,16,-45,16,-122,-132,-170,-141,-151,-155,-141,-143,-152,-161,-133,-118,-162,-79,-155,-163,-192,-163,-237,-113,-139,-138,-139,-146,-141,-134,-147,-142,-143,-131,-197,-191,-223,-212,-216,-126,-129,-52,-184,-64,-179,-187,-208,-183,-200,-200,-222,-225,-251,-236,-275,-247,-366,-319,-508,-516,-484,-512,-504,-503,-531,-439,-591,-607,-812,-783,-811,-806,-810,-808,-751,-760,-781,-765,-768,-768,-29985,-29986,-29990,-29991]} 1. c4 {[%emt 1:31:00]} e6 {[%emt 1:31:00]} 2. Nf3 {[%emt 0:00:30]} d5 {[%emt 0:00:30]} 3. e3 {[%emt 0:00:30]} Nf6 {[%emt 0:00:30]} 4. b3 {[%emt 0:00:30]} Be7 {[%emt 0:00:30]} 5. Be2 {[%emt 0:00:30]} O-O {[%emt 0:00:30]} 6. O-O {[%emt 0:00:30]} b6 {[%emt 0:00:30]} 7. Bb2 {[%emt 0:00:30]} c5 {[%emt 0:00:30]} 8. d4 {[%emt 0:00:30] is the legacy move (8.cxd5).} Bb7 {[%emt 0:00:30]} 9. dxc5 {[%emt 0:00:30] A30: Symmetrical English: Double Fianchetto and Hedgehog.} Bxc5 {[%emt 0:00:30]} 10. a3 {[%emt 0:00:30]} Qe7 {[%emt 0:00:30]} 11. Nc3 {[%emt 0:00:30][%cal Bb1c3,Bc3b5,Bb5d4,Bd4f5][%mdl 32] The position is equal.} (11. b4 $5 Bd6 $8 12. cxd5 $11) 11... Nbd7 $146 {[%emt 0:00:30]} (11... Rd8 12. b4 dxc4 13. Qc2 Bd6 14. Nb5 a6 15. Nxd6 Rxd6 16. Qxc4 Rc6 17. Qb3 Nbd7 18. Rfc1 {½-½ Shvedchikov,A (2285)-Kurdakov,Y (2125) Moscow-ch final 2018 (5)}) 12. b4 {[%emt 0:00:30]} Bd6 {[%emt 0:00:30]} 13. Nb5 {[%emt 0:00:30]} Bb8 {[%emt 0:00:30]} 14. Nbd4 {[%emt 0:00:30]} e5 {[%emt 0:00:30]} 15. Nf5 {[%emt 0:00:30]} Qe6 {[%emt 0:00:30][%csl LRc4,LRf5]} 16. Qb1 {[%emt 0:00:30]} (16. Qc2 $11) 16... Ne4 {[%emt 0:00:30]} (16... dxc4 17. Ng5 Qe8 18. Bxc4 $14) (16... g6 $1 $15 17. Nh6+ Kg7) 17. N3h4 {[%emt 0:00:30]} (17. Ng3 $11 {keeps the balance.}) 17... dxc4 $17 {[%emt 0:00:30][%csl Oc4] Black has a queen side majority. Black has a strong passed pawn} 18. Qd1 {[%emt 0:00:30][%cal Oe2c4]} Ndf6 $36 {[%emt 0:00:30][%mdl 2048] White is under strong pressure.} 19. f3 {[%emt 0:00:30]} Nd6 {[%emt 0:00:30]} 20. e4 {[%emt 0:00:30]} b5 {[%emt 0:00:30]} 21. Qd2 {[%emt 0:00:30]} Nxf5 {[%emt 0:00:30]} 22. Nxf5 {[%emt 0:00:30]} h6 {[%emt 0:00:30]} 23. g4 {[%emt 0:00:30]} Nh7 {[%emt 0:00:30]} (23... Bc7 $19 {has better winning chances.} 24. Kh1 Rfd8) 24. h4 {[%emt 0:00:30]} (24. Rfd1 $142) 24... Bc7 {[%emt 0:00:30]} 25. Qc3 {[%emt 0:00:30]} Rad8 {[%emt 0:00:30][%cal Oh6h5]} 26. Rad1 {[%emt 0:00:30] [#]} (26. a4 a6 27. Kh1) 26... f6 {[%emt 0:00:30]} (26... h5 $1 $19 27. gxh5 Nf6) 27. Kg2 {[%emt 0:00:30]} Rxd1 {[%emt 0:00:30]} 28. Rxd1 {[%emt 0:00:30]} Rd8 {[%emt 0:00:30]} 29. Rxd8+ {[%emt 0:00:30]} Bxd8 {[%emt 0:00:30]} 30. Bc1 {[%emt 0:00:30]} Nf8 {[%emt 0:00:30]} 31. Be3 {[%emt 0:00:30]} Bb6 {[%emt 0:00:30]} 32. Bd2 {[%emt 0:00:30]} (32. Kf1 $17 {was necessary.}) 32... Qd7 {[%emt 0:00:30]} 33. g5 {[%emt 0:00:30]} hxg5 {[%emt 0:00:30]} 34. hxg5 {[%emt 0:00:30]} Kf7 {[%emt 0:00:30]} (34... Bd4 $19 35. Qc1 fxg5) 35. gxf6 {[%emt 0:00:30]} gxf6 {[%emt 0:00:30]} (35... Kxf6 $17 36. a4 g6 (36... bxa4 37. Bxc4 Ne6 38. Qc1 $15)) 36. Qc1 {[%emt 0:00:30]} (36. a4 $15) 36... Ke8 {[%emt 0:00:30]} (36... Ne6 $19 {Strongly threatening ...Nd4.} 37. Qh1 Nd4 (37... Qxd2 38. Qh7+ Kf8 39. Qe7+ Kg8 40. Qxe6+ Kh8 41. Qxf6+ Kh7 42. Qg7#)) 37. Bh6 {[%emt 0:00:30]} ({Better is} 37. Be3 $15) 37... Ne6 $19 {[%emt 0:00:30]} 38. Qh1 {[%emt 0:00:30]} Kd8 {[%emt 0:00:30]} 39. Qh4 {[%emt 0:00:30]} Qf7 {[%emt 0:00:30]} 40. Qg4 {[%emt 0:00:30]} Kc7 {[%emt 0:00:30] Against Nd6} 41. a4 {[%emt 0:00:30]} a6 {[%emt 0:00:30]} 42. a5 {[%emt 0:00:30]} Ba7 {[%emt 0:00:30]} 43. Bd2 {[%emt 0:00:30]} (43. Kf1 $142) 43... Bc8 {[%emt 0:00:30]} 44. Qg3 {[%emt 0:00:30]} (44. Kf1 $142) 44... Nd4 {[%emt 0:00:30]} 45. Nxd4 {[%emt 0:00:30]} Bxd4 {[%emt 0:00:30]} 46. f4 {[%emt 0:00:30]} Bb7 {[%emt 0:00:30]} 47. Bf3 {[%emt 0:00:30]} Bc6 {[%emt 0:00:30]} 48. f5 {[%emt 0:00:30]} c3 {[%emt 0:00:30]} 49. Bc1 {[%emt 0:00:30]} Qa2+ {[%emt 0:00:30]} 50. Kh3 {[%emt 0:00:30]} Qb1 {[%emt 0:00:30]} 51. Qg7+ {[%emt 0:00:30]} Bd7 {[%emt 0:00:30]} 52. Bh6 {[%emt 0:00:30]} c2 {[%emt 0:00:30]} (52... Qxb4 53. Qxf6 c2 (53... Qxa5 $2 54. Bg5 $19) 54. Bg5 $19) 53. Qxf6 {[%emt 0:00:30]} c1=Q {[%emt 0:00:30]} 54. Bxc1 {[%emt 0:00:30]} Qxc1 {[%emt 0:00:30]} 55. Qxa6 {[%emt 0:00:30]} Bc6 {[%emt 0:00:30]} 56. Kg4 {[%emt 0:00:30]} Qf4+ {[%emt 0:00:30] Weighted Error Value: White=0.54/Black=0.23 (precise)   Mistake:       	White=9     	Black=6      Inaccurate:     	White=3     	Black=1      OK:         	White=10    	Black=15     Best:        	---       	Black=3} 0-1

[Event "Silves Open 2025"]
[Site "Fissul"]
[Date "2025.03.05"]
[Round "7.21"]
[White "Pena, Helio Adelino Silva"]
[Black "Finkler, Kai Andreas"]
[Result "0-1"]
[Annotator "NA RC"]
[ECO "B03"]
[WhiteElo "1842"]
[BlackElo "1990"]
[PlyCount "102"]
[EventDate "2025.03.03"]
[EventType "swiss"]
[EventCountry "POR"]
[SourceTitle "playchess.com"]
[Source "ChessBase"]
[SourceQuality "1"]
[TimeControl "5400+30"]

1. e4 {[%emt 0:00:47]} Nf6 {[%emt 0:00:09]} 2. e5 {[%emt 0:00:15]} Nd5 {[%emt 0:00:04]} 3. d4 {[%emt 0:00:32]} d6 {[%emt 0:00:08]} 4. c4 {[%emt 0:02:52]} Nb6 {[%emt 0:00:05]} 5. Nc3 {[%emt 0:06:36]} dxe5 {[%emt 0:01:54]} 6. dxe5 {[%emt 0:01:10]} Qxd1+ {[%emt 0:00:55]} 7. Nxd1 {[%emt 0:00:14]} Nc6 {[%emt 0:00:12]} 8. f4 {[%emt 0:02:12]} g5 {[%emt 0:04:53]} 9. Nc3 {[%emt 0:03:48]} Be6 {[%emt 0:05:13]} 10. b3 {[%emt 0:04:51]} gxf4 {[%emt 0:03:10]} 11. Bxf4 {[%emt 0:00:28]} Bg7 {[%emt 0:00:34]} 12. Nf3 {[%emt 0:00:17]} Bg4 {[%emt 0:03:01]} 13. c5 {[%emt 0:13:09]} Nd7 {[%emt 0:01:23]} 14. Nd5 {[%emt 0:02:45]} O-O-O {[%emt 0:07:59]} 15. Nxc7 {[%emt 0:03:34]} Bxf3 {[%emt 0:03:41]} 16. gxf3 {[%emt 0:00:13]} Ndxe5 {[%emt 0:00:52]} 17. Bh3+ {[%emt 0:03:45]} Kxc7 {[%emt 0:00:22]} 18. Rc1 {[%emt 0:00:41]} Nb4 {[%emt 0:03:38]} 19. O-O {[%emt 0:00:56]} Nbd3 {[%emt 0:00:33]} 20. Bg3 {[%emt 0:00:09]} Nxc1 {[%emt 0:00:12]} 21. Rxc1 {[%emt 0:00:11]} Kc6 {[%emt 0:03:30]} 22. f4 {[%emt 0:02:43]} Nf3+ {[%emt 0:02:47]} 23. Kf2 {[%emt 0:00:49]} Nd4 {[%emt 0:01:10]} 24. Bg2+ {[%emt 0:00:40]} Kc7 {[%emt 0:00:27]} 25. f5+ {[%emt 0:03:22]} Kc8 {[%emt 0:00:51]} 26. Bh3 {[%emt 0:00:24]} e6 {[%emt 0:00:18]} 27. Bh4 {[%emt 0:00:26]} exf5 {[%emt 0:02:23]} 28. c6 {[%emt 0:01:26]} bxc6 {[%emt 0:01:45]} 29. b4 {[%emt 0:03:02]} a6 {[%emt 0:02:01]} 30. a4 {[%emt 0:00:19]} Kb7 {[%emt 0:00:13]} 31. Bg2 {[%emt 0:01:16]} Rde8 {[%emt 0:00:43]} 32. Kf1 {[%emt 0:02:25]} Re2 {[%emt 0:02:51]} 33. Bf2 {[%emt 0:00:05]} Rxf2+ {[%emt 0:00:12]} 34. Kxf2 {[%emt 0:41:08]} Kb6 {[%emt 0:49:21]} 35. Rc5 {[%emt 0:00:00]} Re8 {[%emt 0:00:00]} 36. Bf1 {[%emt 0:00:00]} Re5 {[%emt 0:00:00]} 37. Rc3 {[%emt 0:00:00]} Ne6 {[%emt 0:00:00]} 38. Bg2 {[%emt 0:00:00]} c5 {[%emt 0:00:00]} 39. Rc1 {[%emt 0:00:00]} cxb4 {[%emt 0:00:00]} 40. Rc6+ {[%emt 0:00:00]} Ka5 {[%emt 0:00:00]} 41. Bf1 {[%emt 0:00:00]} Kxa4 {[%emt 0:00:00]} 42. Rxa6+ {[%emt 0:00:00]} Kb3 {[%emt 0:00:00]} 43. Ra7 {[%emt 0:00:00]} Nd8 {[%emt 0:00:00]} 44. Rd7 {[%emt 0:00:00]} Bf6 {[%emt 0:00:00]} 45. Bg2 {[%emt 0:00:00]} Bg5 {[%emt 0:00:00]} 46. Bh3 {[%emt 0:00:00]} h6 {[%emt 0:00:00]} 47. Rc7 {[%emt 0:00:00]} Ne6 {[%emt 0:00:00]} 48. Rxf7 {[%emt 0:00:00]} Nd4 {[%emt 0:00:00]} 49. Rd7 {[%emt 0:00:00]} Be3+ {[%emt 0:00:00]} 50. Ke1 {[%emt 0:00:00]} Rc5 {[%emt 0:00:00]} 51. Kf1 {[%emt 0:00:00]} Rc1+ {[%emt 0:00:00]} 0-1

[Event "Silves Open 2025"]
[Site "Fissul"]
[Date "2025.03.05"]
[Round "7.22"]
[White "Esteves, Goncalo Maria Franco"]
[Black "Almeida, Marta Dias"]
[Result "1/2-1/2"]
[Annotator "NA"]
[ECO "B11"]
[WhiteElo "1962"]
[BlackElo "1790"]
[PlyCount "61"]
[EventDate "2025.03.03"]
[EventType "swiss"]
[EventCountry "POR"]
[SourceTitle "playchess.com"]
[Source "ChessBase"]
[SourceQuality "1"]
[TimeControl "5400+30"]

1. e4 {[%emt 0:00:15]} c6 {[%emt 0:00:07]} 2. Nc3 {[%emt 0:00:19]} d5 {[%emt 0:00:06]} 3. Nf3 {[%emt 0:00:15]} Bg4 {[%emt 0:00:10]} 4. Be2 {[%emt 0:00:07]} e6 {[%emt 0:00:22]} 5. d4 {[%emt 0:04:21]} Nf6 {[%emt 0:00:37]} 6. e5 {[%emt 0:02:49]} Nfd7 {[%emt 0:00:13]} 7. Ng1 {[%emt 0:00:57]} Bxe2 {[%emt 0:00:26]} 8. Ngxe2 {[%emt 0:00:02]} c5 {[%emt 0:01:42]} 9. Be3 {[%emt 0:00:46]} Nc6 {[%emt 0:01:20]} 10. O-O {[%emt 0:02:59]} cxd4 {[%emt 0:01:58]} 11. Bxd4 {[%emt 0:00:36]} Ndxe5 {[%emt 0:01:34]} 12. Re1 {[%emt 0:01:36]} Be7 {[%emt 0:05:54]} 13. Nf4 {[%emt 0:02:36]} Bf6 {[%emt 0:04:19]} 14. Bc5 {[%emt 0:01:52]} b6 {[%emt 0:05:44]} 15. Ba3 {[%emt 0:00:48]} d4 {[%emt 0:04:34]} 16. Nb5 {[%emt 0:03:24]} Be7 {[%emt 0:05:17]} 17. Bxe7 {[%emt 0:01:58]} Qxe7 {[%emt 0:00:39]} 18. Nxd4 {[%emt 0:00:34]} O-O {[%emt 0:03:34]} 19. Nd5 {[%emt 0:01:51]} Qh4 {[%emt 0:04:53]} 20. Nxc6 {[%emt 0:01:51]} Nxc6 {[%emt 0:00:22]} 21. Ne3 {[%emt 0:02:44]} Rfd8 {[%emt 0:01:07]} 22. Qf3 {[%emt 0:01:29]} Nd4 {[%emt 0:03:02]} 23. Qb7 {[%emt 0:02:20]} Qf4 {[%emt 0:08:53]} 24. c3 {[%emt 0:01:43]} Nf5 {[%emt 0:01:53]} 25. g3 {[%emt 0:03:03]} Qg5 {[%emt 0:00:36]} 26. Rad1 {[%emt 0:04:11]} Nxe3 {[%emt 0:02:16]} 27. Rxd8+ {[%emt 0:00:47]} Rxd8 {[%emt 0:00:39]} 28. Rxe3 {[%emt 0:00:15]} Rd1+ {[%emt 0:06:00]} 29. Kg2 {[%emt 0:00:07]} Qd5+ {[%emt 0:00:54]} 30. Qxd5 {[%emt 0:00:09]} Rxd5 {[%emt 0:00:07]} 31. Re2 {[%emt 0:59:16]} 1/2-1/2

[Event "Silves Open 2025"]
[Site "Fissul"]
[Date "2025.03.05"]
[Round "7.24"]
[White "Mostafa, Hazem Farouk Mahmoud"]
[Black "Salas Munoz, Paulino Jose"]
[Result "0-1"]
[Annotator "NA RC"]
[ECO "B22"]
[WhiteElo "1769"]
[BlackElo "1915"]
[PlyCount "68"]
[EventDate "2025.03.03"]
[EventType "swiss"]
[EventCountry "POR"]
[SourceTitle "playchess.com"]
[Source "ChessBase"]
[SourceQuality "1"]
[TimeControl "5400+30"]

1. e4 {[%emt 0:02:08]} d5 {[%emt 0:00:58]} 2. e5 {[%emt 0:00:08]} c5 {[%emt 0:00:06]} 3. c3 {[%emt 0:00:08]} d4 {[%emt 0:00:32]} 4. f4 {[%emt 0:02:53]} Nc6 {[%emt 0:00:49]} 5. Nf3 {[%emt 0:00:12]} Nh6 {[%emt 0:03:50]} 6. Bb5 {[%emt 0:02:16]} Bd7 {[%emt 0:01:44]} 7. d3 {[%emt 0:00:16]} Nxe5 {[%emt 0:01:54]} 8. fxe5 {[%emt 0:01:40]} Bxb5 {[%emt 0:00:20]} 9. Bxh6 {[%emt 0:00:14]} gxh6 {[%emt 0:00:17]} 10. c4 {[%emt 0:00:04]} Bc6 {[%emt 0:06:07]} 11. e6 {[%emt 0:00:18]} Qa5+ {[%emt 0:00:15]} 12. Nbd2 {[%emt 0:00:21]} O-O-O {[%emt 0:05:02]} 13. exf7 {[%emt 0:01:25]} Bxf3 {[%emt 0:09:08]} 14. Qxf3 {[%emt 0:00:12]} e5 {[%emt 1:06:28]} 15. Ke2 {[%emt 0:08:06]} Qc7 {[%emt 0:00:00]} 16. a3 {[%emt 0:03:26]} Kb8 {[%emt 0:00:00]} 17. b4 {[%emt 0:03:48]} cxb4 {[%emt 0:00:00]} 18. axb4 {[%emt 0:00:10]} Bxb4 {[%emt 0:00:00]} 19. Rhb1 {[%emt 0:01:10]} Bxd2 {[%emt 0:00:00]} 20. Kxd2 {[%emt 0:00:09]} Rhf8 {[%emt 0:00:00]} 21. Rb3 {[%emt 0:01:59]} Rxf7 {[%emt 0:00:00]} 22. Qe4 {[%emt 0:00:19]} Rdf8 {[%emt 0:00:00]} 23. Re1 {[%emt 0:00:43]} Qa5+ {[%emt 0:00:00]} 24. Kc2 {[%emt 0:00:11]} Rf2+ {[%emt 0:00:00]} 25. Re2 {[%emt 0:00:10]} Rxe2+ {[%emt 0:00:00]} 26. Qxe2 {[%emt 0:00:25]} e4 {[%emt 0:00:00]} 27. dxe4 {[%emt 0:05:57]} Qa2+ {[%emt 0:00:00]} 28. Rb2 {[%emt 0:00:20]} Qa4+ {[%emt 0:00:00]} 29. Kd3 {[%emt 0:00:59]} Qa3+ {[%emt 0:00:00]} 30. Kxd4 {[%emt 0:00:20]} Rd8+ {[%emt 0:00:00]} 31. Ke5 {[%emt 0:00:58]} Qd6+ {[%emt 0:00:00]} 32. Kf5 {[%emt 0:00:59]} Qg6+ {[%emt 0:00:00]} 33. Kf4 {[%emt 0:00:45]} Qg5+ {[%emt 0:00:00]} 34. Kf3 {[%emt 0:02:22]} Rf8# {[%emt 0:01:20]} 0-1

[Event "Silves Open 2025"]
[Site "Fissul"]
[Date "2025.03.05"]
[Round "7.25"]
[White "Van Ree, Thailo"]
[Black "Crow, Steve"]
[Result "1-0"]
[Annotator "NA RC"]
[ECO "A85"]
[WhiteElo "1881"]
[BlackElo "1742"]
[PlyCount "85"]
[EventDate "2025.03.03"]
[EventType "swiss"]
[EventCountry "POR"]
[SourceTitle "playchess.com"]
[Source "ChessBase"]
[SourceQuality "1"]
[TimeControl "5400+30"]

1. d4 {[%emt 1:31:00]} f5 {[%emt 1:31:00]} 2. c4 {[%emt 0:00:30]} Nf6 {[%emt 0:00:30]} 3. Nc3 {[%emt 0:00:30]} e6 {[%emt 0:00:30]} 4. Qc2 {[%emt 0:00:30]} b6 {[%emt 0:00:30]} 5. Bg5 {[%emt 0:00:30]} Bb7 {[%emt 0:00:30]} 6. O-O-O {[%emt 0:00:30]} h6 {[%emt 0:00:30]} 7. Bf4 {[%emt 0:00:30]} g5 {[%emt 0:00:30]} 8. Bd2 {[%emt 0:00:30]} Ne4 {[%emt 0:00:30]} 9. Nxe4 {[%emt 0:00:30]} Bxe4 {[%emt 0:00:30]} 10. Qb3 {[%emt 0:00:30]} Bb7 {[%emt 0:00:30]} 11. f3 {[%emt 0:00:30]} d5 {[%emt 0:00:30]} 12. e3 {[%emt 0:00:30]} dxc4 {[%emt 0:00:30]} 13. Bxc4 {[%emt 0:00:30]} Bd5 {[%emt 0:00:30]} 14. Ne2 {[%emt 0:00:30]} Bxc4 {[%emt 0:00:30]} 15. Qxc4 {[%emt 0:00:30]} Qd5 {[%emt 0:00:30]} 16. Qxd5 {[%emt 0:00:30]} exd5 {[%emt 0:00:30]} 17. Ng3 {[%emt 0:00:30]} Nc6 {[%emt 0:00:30]} 18. Nxf5 {[%emt 0:00:30]} Nb4 {[%emt 0:00:30]} 19. Kb1 {[%emt 0:00:30]} O-O-O {[%emt 0:00:30]} 20. a3 {[%emt 0:00:30]} Nc6 {[%emt 0:00:30]} 21. Bc3 {[%emt 0:00:30]} Ne7 {[%emt 0:00:30]} 22. g4 {[%emt 0:00:30]} Rh7 {[%emt 0:00:30]} 23. e4 {[%emt 0:00:30]} Rf7 {[%emt 0:00:30]} 24. h4 {[%emt 0:00:30]} Nxf5 {[%emt 0:00:30]} 25. exf5 {[%emt 0:00:30]} Be7 {[%emt 0:00:30]} 26. hxg5 {[%emt 0:00:30]} Bxg5 {[%emt 0:00:30]} 27. Rde1 {[%emt 0:00:30]} Kd7 {[%emt 0:00:30]} 28. Re5 {[%emt 0:00:30]} Kc6 {[%emt 0:00:30]} 29. Kc2 {[%emt 0:00:30]} Kb5 {[%emt 0:00:30]} 30. b3 {[%emt 0:00:30]} Rd6 {[%emt 0:00:30]} 31. Kd3 {[%emt 0:00:30]} Bf4 {[%emt 0:00:30]} 32. a4+ {[%emt 0:00:30]} Kc6 {[%emt 0:00:30]} 33. Bb4 {[%emt 0:00:30]} Bxe5 {[%emt 0:00:30]} 34. dxe5 {[%emt 0:00:30]} Rd8 {[%emt 0:00:30]} 35. Rxh6+ {[%emt 0:00:30]} Kb7 {[%emt 0:00:30]} 36. e6 {[%emt 0:00:30]} c5 {[%emt 0:00:30]} 37. exf7 {[%emt 0:00:30]} cxb4 {[%emt 0:00:30]} 38. Re6 {[%emt 0:00:30]} Rf8 {[%emt 0:00:30]} 39. Re7+ {[%emt 0:00:30]} Kc6 {[%emt 0:00:30]} 40. g5 {[%emt 0:00:30]} Kd6 {[%emt 0:00:30]} 41. f6 {[%emt 0:00:30]} Rc8 {[%emt 0:00:30]} 42. Re8 {[%emt 0:00:30]} Rc3+ {[%emt 0:00:30]} 43. Kd2 {[%emt 0:00:30]} 1-0

[Event "Silves Open 2025"]
[Site "Fissul"]
[Date "2025.03.05"]
[Round "7.26"]
[White "Van Ginkel, Henk"]
[Black "Moldovan, Lucas Gabriel"]
[Result "1-0"]
[Annotator "NA RC"]
[ECO "A00"]
[WhiteElo "1811"]
[BlackElo "1992"]
[PlyCount "77"]
[EventDate "2025.03.03"]
[EventType "swiss"]
[EventCountry "POR"]
[SourceTitle "playchess.com"]
[Source "ChessBase"]
[SourceQuality "1"]
[TimeControl "5400+30"]

1. b4 {[%emt 0:00:03]} e5 {[%emt 0:03:15]} 2. Bb2 {[%emt 0:00:11]} Bxb4 {[%emt 1:28:15]} 3. Bxe5 {[%emt 1:31:46]} Nf6 {[%emt 0:00:00]} 4. e3 {[%emt 0:00:00]} Nc6 {[%emt 0:00:00]} 5. Bb2 {[%emt 0:00:00]} O-O {[%emt 0:00:00]} 6. Nf3 {[%emt 0:00:00]} d5 {[%emt 0:00:00]} 7. c4 {[%emt 0:00:00]} Be6 {[%emt 0:00:00]} 8. Qc2 {[%emt 0:00:00]} Be7 {[%emt 0:00:00]} 9. a3 {[%emt 0:00:00]} h6 {[%emt 0:00:00]} 10. d4 {[%emt 0:00:00]} dxc4 {[%emt 0:00:00]} 11. Bxc4 {[%emt 0:00:00]} Bxc4 {[%emt 0:04:30]} 12. Qxc4 {[%emt 0:00:00]} Nd5 {[%emt 0:00:00]} 13. O-O {[%emt 0:00:00]} Nb6 {[%emt 0:00:00]} 14. Qb3 {[%emt 0:00:00]} Na5 {[%emt 0:00:00]} 15. Qc2 {[%emt 0:00:00]} Nac4 {[%emt 0:00:00]} 16. Nc3 {[%emt 0:00:00]} Rb8 {[%emt 0:00:00]} 17. Rfd1 {[%emt 0:00:00]} Nxb2 {[%emt 0:00:00]} 18. Qxb2 {[%emt 0:00:00]} Nd5 {[%emt 0:00:00]} 19. Rac1 {[%emt 0:00:00]} c6 {[%emt 0:00:00]} 20. Qb3 {[%emt 0:08:30]} Nxc3 {[%emt 0:00:00]} 21. Qxc3 {[%emt 0:00:00]} Qd6 {[%emt 0:00:00]} 22. Rd3 {[%emt 0:00:00]} Rfd8 {[%emt 0:00:00]} 23. Rcd1 {[%emt 0:00:00]} Rdc8 {[%emt 0:00:00]} 24. Ne5 {[%emt 0:00:00]} Bf6 {[%emt 0:00:18]} 25. f4 {[%emt 0:02:30]} b5 {[%emt 0:06:42]} 26. e4 {[%emt 0:00:00]} c5 {[%emt 0:00:30]} 27. dxc5 {[%emt 0:00:00]} Bxe5 {[%emt 0:00:00]} 28. cxd6 {[%emt 0:00:00]} Rxc3 {[%emt 0:00:00]} 29. fxe5 {[%emt 0:00:00]} Rxd3 {[%emt 0:00:00]} 30. Rxd3 {[%emt 0:00:00]} Kf8 {[%emt 0:00:00]} 31. Kf2 {[%emt 0:00:00]} Ke8 {[%emt 0:02:30]} 32. Ke3 {[%emt 0:00:00]} a5 {[%emt 0:00:00]} 33. Kd4 {[%emt 0:00:00]} b4 {[%emt 0:00:00]} 34. Rb3 {[%emt 0:00:00]} Kd7 {[%emt 0:00:00]} 35. axb4 {[%emt 0:00:00]} Rxb4+ {[%emt 0:00:00]} 36. Rxb4 {[%emt 0:00:00]} axb4 {[%emt 0:00:00]} 37. Kc4 {[%emt 0:00:00]} b3 {[%emt 0:00:00]} 38. Kxb3 {[%emt 0:00:00]} f6 {[%emt 0:00:00]} 39. Kc4 {[%emt 0:00:00]} 1-0

[Event "Silves Open 2025"]
[Site "Fissul"]
[Date "2025.03.05"]
[Round "7.27"]
[White "Breitkopf, Ilian"]
[Black "Dumont, Andre"]
[Result "0-1"]
[Annotator "NA"]
[ECO "B30"]
[WhiteElo "1671"]
[BlackElo "1891"]
[PlyCount "66"]
[EventDate "2025.03.03"]
[EventType "swiss"]
[EventCountry "POR"]
[SourceTitle "playchess.com"]
[Source "ChessBase"]
[SourceQuality "1"]
[TimeControl "5400+30"]

1. e4 {[%emt 0:00:03]} c5 {[%emt 1:31:00]} 2. Nf3 e6 3. Bc4 Nc6 4. d3 Nf6 {[%emt 0:00:00]} 5. Ng5 {[%emt 0:01:52]} d6 {[%emt 0:02:00]} 6. Nc3 a6 7. a4 g6 8. Be3 Bg7 9. O-O O-O 10. f4 b6 11. Ne2 Ng4 12. Qc1 Nxe3 13. Qxe3 Bxb2 14. Rab1 Bg7 15. Ng3 Bd4 16. Qf2 Bxf2+ 17. Rxf2 Nd4 18. c3 h6 19. Nf3 Nxf3+ 20. Rxf3 d5 21. exd5 exd5 22. Bb3 Re8 23. h3 Qd6 24. Kf2 c4 25. Bc2 cxd3 26. Bxd3 Qc5+ 27. Kf1 Re3 28. Be2 Rxf3+ 29. Bxf3 Qxc3 30. Ne2 Qd3 31. Rxb6 Bxh3 {[%emt 0:00:00]} 32. Rb3 {[%emt 0:33:42]} Qxb3 {[%emt 0:13:30]} 33. Nc3 Qxc3 {[%emt 0:00:00]} 0-1